[Event "93rd German Championship 2022"]
[Site "Magdeburg"]
[Date "2022.08.19"]
[Round "8.2"]
[White "Vogel, Roven"]
[Black "Costa, Leonardo"]
[Result "0-1"]
[ECO "D35"]
[WhiteElo "2465"]
[BlackElo "2316"]
[Annotator "TA"]
[PlyCount "132"]
[EventDate "2022.08.14"]
[EventType "swiss"]
[EventCountry "GER"]
[SourceTitle "playchess.com"]
[Source "ChessBase"]
[SourceQuality "1"]
[TimeControl "40/5400+30:1800+30"]

{[%evp 15,132,19,21,25,20,14,20,0,8,7,18,8,8,0,0,0,0,0,0,0,0,0,0,0,0,0,0,0,22,20,93,87,160,171,150,156,156,175,156,159,154,133,144,128,130,80,91,86,180,185,310,303,353,338,352,0,228,0,337,337,335,331,354,187,182,201,179,147,147,52,40,0,0,0,0,0,0,0,0,0,0,-137,-156,-126,-126,-126,-107,-104,-66,-89,-59,-60,-60,-149,-141,-141,-141,-472,-464,-438,-391,-29971,-29972,-29971,-29972,-29974,-29975,-29975,-29976,-29975,-29976,-29976,-29977,-29980,-29981,-29981,-29982,-29982,-29983]} 1. d4 {[%emt 0:00:08]} Nf6 {[%emt 0:00:11]} 2. c4 {[%emt 0:00:17]} e6 {[%emt 0:00:05]} 3. Nc3 {[%emt 0:00:35]} d5 {[%emt 0:00:05]} 4. cxd5 {[%emt 0:00:18]} exd5 {[%emt 0:00:05]} 5. Bg5 {[%emt 0:00:15]} Be7 {[%emt 0:00:04]} 6. e3 {[%emt 0:00:24]} O-O {[%emt 0:00:10]} 7. Bd3 {[%emt 0:00:36]} h6 {[%emt 0:00:07]} 8. Bh4 {[%emt 0:00:09]} Re8 {[%emt 0:00:13]} 9. Nge2 {[%emt 0:00:16][%cal Bg1e2,Be2g3,Bg3f5][%mdl 32] D35: Queen's Gambit Declined: Exchange Variation.} Nbd7 {[%emt 0:00:09]} 10. O-O {[%emt 0:01:16]} c6 {[%emt 0:00:10]} 11. f3 {[%emt 0:01:35] The position is equal.} b5 {[%emt 0:03:00]} 12. Bf2 {[%emt 0:00:42]} Bb7 {[%emt 0:00:58]} 13. Rc1 {[%emt 0:01:38]} a6 {[%emt 0:01:58]} 14. Ng3 {[%emt 0:06:45]} c5 {[%emt 0:06:25]} 15. dxc5 {[%emt 0:00:45]} Bxc5 {[%emt 0:07:26]} 16. Nf5 {[%emt 0:01:27] [#]} Qb6 $146 {[%emt 0:07:40]} ({Predecessor:} 16... Rc8 17. a4 b4 18. Ne2 Ne5 19. Ned4 Bf8 20. Rxc8 {½-½ (20) Samunenkov,I (2433)-Nisipeanu,L (2645) Targu Mures 2022}) 17. Ne2 {[%emt 0:07:43][%cal Bc3e2,Be2f4,Bf4d3][%mdl 32]} g6 {[%emt 0:04:43]} 18. Nfd4 {[%emt 0:05:38]} (18. Nxh6+ Kg7 19. Ng4 Nxg4 20. fxg4 Bxe3 $15) 18... Ne5 {[%emt 0:09:25]} 19. b3 {[%emt 0:21:37]} Nxd3 {[%emt 0:00:39]} 20. Qxd3 {[%emt 0:00:08]} Rac8 {[%emt 0:04:21]} 21. Qd2 {[%emt 0:02:14]} b4 {[%emt 0:04:50]} 22. Nf4 {[%emt 0:03:56]} Qd6 {[%emt 0:04:36]} (22... a5 $11) 23. Nd3 $1 $16 {[%emt 0:00:51] Pair of Knights!} a5 {[%emt 0:02:14]} (23... Bb6 $142) 24. Rxc5 {[%emt 0:04:20]} Rxc5 {[%emt 0:00:17]} 25. Bg3 {[%emt 0:00:22]} (25. Nxc5 Qxc5 26. Rc1 Qe7 $16) 25... Qb6 {[%emt 0:01:44]} 26. Nxc5 {[%emt 0:00:08]} Qxc5 {[%emt 0:00:03]} 27. Rc1 {[%emt 0:00:11]} Qa7 {[%emt 0:08:16]} 28. Rc7 {[%emt 0:00:43]} Qa6 {[%emt 0:01:05] Prevents Nb5.} 29. Kf2 {[%emt 0:01:21]} Nh5 {[%emt 0:08:28]} 30. Qc2 {[%emt 0:01:50]} (30. Qc1 $142 $1) 30... Nxg3 {[%emt 0:00:43]} 31. hxg3 {[%emt 0:02:03]} Ba8 {[%emt 0:00:20]} (31... h5 $16 {keeps fighting.}) 32. Qc5 $18 {[%emt 0:05:03]} Qd3 {[%emt 0:05:10]} (32... Bb7 {was necessary.} 33. Qb5 Qxb5 34. Nxb5 Ba6) 33. Ne2 {[%emt 0:03:04]} (33. Qc1 Qa6 34. Qf1 Qd6 $16) 33... Qa6 {[%emt 0:06:36] Against Rc8} 34. Ra7 {[%emt 0:00:42]} Qd3 {[%emt 0:00:04]} 35. Rc7 {[%emt 0:04:37]} Qa6 {[%emt 0:00:30] Prevents Rc8.} 36. Ra7 {[%emt 0:06:13]} (36. Qd4 $142) 36... Qd3 {[%emt 0:00:52]} 37. Rxa5 {[%emt 0:00:19]} Bb7 {[%emt 0:02:26]} 38. Qd4 {[%emt 0:00:33]} Qc2 {[%emt 0:03:48]} 39. Qxb4 {[%emt 0:02:14]} (39. g4 $142) 39... Ba6 {[%emt 0:00:26]} 40. Rxa6 {[%emt 0:10:34]} Qd3 {[%emt 0:00:15]} 41. Qb6 {[%emt 0:34:21]} d4 {[%emt 0:30:37]} 42. Qxd4 Qxa6 $16 {[%emt 0:00:16][%mdl 4096] Endgame KQR-KQN} 43. Qd2 {[%emt 0:02:16]} Qa3 {[%emt 0:04:18]} 44. Nc3 {[%emt 0:00:00]} Ra8 {[%emt 0:00:00]} 45. g4 {[%emt 0:00:00]} Qa5 {[%emt 0:00:00]} 46. Qb2 {[%emt 0:00:00]} Qe5 {[%emt 0:00:00] And now ...Rc8 would win.} 47. Qd2 {[%emt 0:00:00]} Qa5 {[%emt 0:00:00]} 48. a4 {[%emt 0:00:00]} (48. Qb2 $11 {remains equal.}) 48... Rd8 $17 {[%emt 0:00:00]} 49. Qb2 {[%emt 0:00:00]} Qe5 {[%emt 0:00:00]} 50. Ke2 {[%emt 0:00:00]} Qg3 $36 {[%emt 0:00:00][%mdl 2048] Black has strong initiative. Black is much more active.} ({Much worse is} 50... Qd6 $6 51. Ne4 Qh2 52. Kf2 $11 (52. Nf6+ Kf8 $11)) 51. Ne4 {[%emt 0:00:00]} ({Don't go for} 51. Kf1 $2 Rd3 52. Qc2 Rxe3 $19) 51... Qxg2+ {[%emt 0:00:00]} 52. Nf2 {[%emt 0:00:00]} h5 {[%emt 0:00:00]} 53. gxh5 {[%emt 0:00:00]} gxh5 {[%emt 0:00:00]} 54. a5 {[%emt 0:00:00] [#]} (54. Qc2 $15) 54... h4 $1 {[%emt 0:00:00] ...h3 is the strong threat.} 55. Qf6 {[%emt 0:00:00] [#]} Rc8 {[%emt 0:00:00] Threatens to win with ...Rc2+.} 56. Qxh4 $2 {[%emt 0:00:00][%mdl 8192]} (56. Qf5 $17 Rc3 57. b4) 56... Rc2+ $19 {[%emt 0:00:00][%mdl 64] Deflection} 57. Kd3 {[%emt 0:00:00]} Rxf2 {[%emt 0:00:00]} 58. Qg4+ $2 {[%emt 0:00:00]} (58. Qd8+ $19 Kg7 59. Qd4+ f6 60. Qe4 Qf1+ 61. Kc3 Qc1+ 62. Kb4 Qd2+ 63. Ka4 Qd7+ 64. Kb4) 58... Qxg4 {[%emt 0:00:00] Black mates.} 59. fxg4 {[%emt 0:00:00] KR-KP} Kf8 {[%emt 0:00:00]} 60. b4 {[%emt 0:00:00]} Ke7 {[%emt 0:00:00]} 61. Kc4 {[%emt 0:00:55]} Kd6 {[%emt 0:00:00]} 62. Kb5 {[%emt 0:00:07]} Kc7 {[%emt 0:00:00]} 63. Kc5 {[%emt 0:03:19]} Rg2 {[%emt 0:00:00]} 64. b5 {[%emt 0:01:02]} Rxg4 {[%emt 0:00:00]} 65. b6+ {[%emt 0:00:26]} Kb7 {[%emt 0:00:00]} 66. Kd5 {[%emt 0:00:05]} Ra4 {[%emt 0:00:03] Black used his chance.  Weighted Error Value: White=0.43/Black=0.10 (very precise)} 0-1

[Event "93rd German Championship 2022"]
[Site "Magdeburg"]
[Date "2022.08.19"]
[Round "8.3"]
[White "Poetsch, Hagen"]
[Black "Schulz, Lukas"]
[Result "1/2-1/2"]
[ECO "E71"]
[WhiteElo "2500"]
[BlackElo "2272"]
[Annotator "TA"]
[PlyCount "67"]
[EventDate "2022.08.14"]
[EventType "swiss"]
[EventCountry "GER"]
[SourceTitle "playchess.com"]
[Source "ChessBase"]
[SourceQuality "1"]
[TimeControl "40/5400+30:1800+30"]

{[%evp 13,67,39,46,44,48,43,37,41,72,56,66,29,79,19,9,0,2,-50,-62,-39,-52,-56,-27,-36,-31,-32,-33,-17,-18,-8,-2,-157,0,-7,0,0,0,0,0,0,0,0,0,0,0,0,0,-206,-95,-87,0,-199,0,-83,0,-153]} 1. d4 {[%emt 0:00:03]} Nf6 {[%emt 0:00:08]} 2. c4 {[%emt 0:00:04]} g6 {[%emt 0:00:04]} 3. Nc3 {[%emt 0:00:05]} Bg7 {[%emt 0:00:05]} 4. e4 {[%emt 0:00:06]} d6 {[%emt 0:00:06]} 5. h3 {[%emt 0:00:06]} O-O {[%emt 0:01:18]} 6. Be3 {[%emt 0:00:07]} e5 {[%emt 0:01:42]} 7. d5 {[%emt 0:00:06]} Nbd7 {[%emt 0:01:15]} 8. g4 $1 {[%emt 0:00:58][%mdl 4] is more profitable than 8.Nf3 at the moment. E71: King's Indian: 4 e4 d6 5 h3.} Nc5 {[%emt 0:02:38]} 9. f3 {[%emt 0:00:06]} a5 {[%emt 0:08:32]} 10. Nge2 {[%emt 0:00:24] White is slightly better.} Ne8 {[%emt 0:05:10][%cal Og7h6]} 11. h4 {[%emt 0:22:25]} f5 {[%emt 0:13:12]} 12. exf5 {[%emt 0:01:05]} gxf5 {[%emt 0:00:11]} 13. g5 {[%emt 0:02:04] [#]} (13. gxf5 $16 Bf6 14. Bh3) 13... e4 $146 {[%emt 0:13:33]} ({Predecessor:} 13... Qe7 14. Qd2 e4 15. f4 Nd3+ 16. Kd1 c5 17. Ng3 Nc7 18. Bxd3 exd3 19. Re1 Qf7 {1-0 (39) Milanovic,S (2310)-Kouvidis,I (2084) Belgrade 2022}) 14. Nf4 {[%emt 0:25:35] Prevents Nd3+.} Qe7 {[%emt 0:02:29]} 15. Bh3 {[%emt 0:22:29]} ({White should play} 15. Bg2 $11) 15... a4 $15 {[%emt 0:11:04]} 16. Rc1 {[%emt 0:07:44]} Be5 {[%emt 0:02:16]} 17. O-O {[%emt 0:01:39]} Bxf4 {[%emt 0:00:10]} (17... a3 $5 {[%cal Ra3b2]} 18. b3 Bxf4 19. Bxf4 Nd3 20. fxe4 Nxc1 21. Bxc1 fxe4 22. Rxf8+ Qxf8 23. Bxc8 Rxc8 $11) 18. Bxf4 {[%emt 0:00:05]} Nd3 {[%emt 0:00:05]} 19. fxe4 {[%emt 0:01:16]} fxe4 {[%emt 0:01:18]} 20. Bxc8 {[%emt 0:00:12]} Rxc8 {[%emt 0:02:15]} 21. Qg4 {[%emt 0:01:36]} Ng7 {[%emt 0:01:08]} 22. Rc2 {[%emt 0:03:23]} ({White has to play} 22. Rb1 $11) 22... Nh5 {[%emt 0:09:03]} 23. Qxh5 $11 {[%emt 0:01:36] Qg4 is the strong threat.} Rxf4 {[%emt 0:00:08]} 24. Rxf4 {[%emt 0:01:33]} Nxf4 {[%emt 0:00:04]} 25. Qg4 {[%emt 0:00:05]} Rf8 $36 {[%emt 0:00:05][%mdl 2048] And now ...Qe5 would win. Black is pushing.} 26. Rf2 {[%emt 0:05:36]} Qe5 {[%emt 0:00:16]} 27. Ne2 {[%emt 0:00:14]} Nxe2+ {[%emt 0:00:47]} 28. Rxe2 {[%emt 0:01:26][%mdl 4096] Endgame KQR-KQR} Rf4 {[%emt 0:01:33]} 29. Qc8+ {[%emt 0:00:11]} Kg7 {[%emt 0:00:12]} 30. Qd7+ $2 {[%emt 0:00:14] [#]} ({Don't play} 30. Qxc7+ Rf7 31. Qa5 Qg3+ 32. Rg2 Qe3+ 33. Kh2 Qf4+ 34. Kg1 Qf1+ 35. Kh2 Qf4+ 36. Kg1 Qc1+ 37. Kh2 Qxc4 $17) (30. h5 $1 $11 {and White stays safe.}) 30... Rf7 {[%emt 0:00:16]} (30... Kg6 $1 $19 {has better winning chances.} 31. Qe6+ Qxe6 32. dxe6 Rxh4) 31. Qg4 $17 {[%emt 0:00:18]} Rf4 {[%emt 0:00:09]} (31... a3 $17 {White must now prevent ...Qd4+.} 32. bxa3 Rf4) 32. Qd7+ $1 $19 {[%emt 0:00:05] [#]} Rf7 {[%emt 0:00:06]} (32... Kg6 $1 $19 {and Black stays clearly on top. Strongly threatening ...e3.} 33. Qe6+ Qxe6 34. dxe6 Rxh4) 33. Qg4 $1 $17 {[%emt 0:00:05]} Rf4 {[%emt 0:00:09]} ({Better is} 33... a3 34. bxa3 Rf4 35. Qd7+ Kg6) 34. Qd7+ $1 {Weighted Error Value: White=0.24 (precise) /Black=0.35} 1/2-1/2

[Event "93rd German Championship 2022"]
[Site "Magdeburg"]
[Date "2022.08.19"]
[Round "8.4"]
[White "Krastev, Alexander"]
[Black "Wachinger, Nikolas"]
[Result "1/2-1/2"]
[ECO "B23"]
[WhiteElo "2435"]
[BlackElo "2437"]
[Annotator "TA"]
[PlyCount "80"]
[EventDate "2022.08.14"]
[EventType "swiss"]
[EventCountry "GER"]
[SourceTitle "playchess.com"]
[Source "ChessBase"]
[SourceQuality "1"]
[TimeControl "40/5400+30:1800+30"]

{[%evp 9,80,-3,-1,-26,-6,-16,-8,-15,7,4,9,6,17,15,12,12,8,-16,-17,-34,-43,-35,-25,-40,-31,-35,-15,-25,-27,-116,-99,-88,-8,-4,0,0,0,0,0,0,0,0,0,0,0,0,0,0,0,0,0,0,0,0,0,0,0,0,0,0,0,0,0,0,0,0,0,0,0,0,0,0,0]} 1. e4 {[%emt 0:00:02]} c5 {[%emt 0:00:50]} 2. Nc3 {[%emt 0:00:08]} d6 {[%emt 0:00:25]} 3. f4 {[%emt 0:00:14]} g6 {[%emt 0:00:30]} 4. Nf3 {[%emt 0:00:04]} Bg7 {[%emt 0:00:11]} 5. Bb5+ {[%emt 0:00:06]} Bd7 {[%emt 0:00:21]} 6. Bc4 {[%emt 0:00:04] B23: Closed Sicilian: Lines without g3.} Nc6 {[%emt 0:01:29]} 7. d3 {[%emt 0:00:14]} e6 {[%emt 0:05:42]} 8. f5 {[%emt 0:00:07]} gxf5 {[%emt 0:09:24]} 9. exf5 {[%emt 0:00:11]} d5 {[%emt 0:00:09]} 10. Bb5 {[%emt 0:00:04]} Nge7 {[%emt 0:00:39]} 11. Bxc6 {[%emt 0:00:06]} Bxc6 {[%emt 0:00:09]} 12. fxe6 {[%emt 0:00:59]} fxe6 {[%emt 0:03:14] [#]} 13. Ng5 $146 {[%emt 0:08:47] 0-0 is the strong threat.} ({Predecessor:} 13. Qe2 O-O 14. Qxe6+ Kh8 15. Bg5 d4 16. Ne4 Qd5 17. Qg4 Qf5 18. h3 Qxg4 19. hxg4 Bxe4 20. Bxe7 {1-0 (79) Karthik,V (2485)-Imtiaz,I (2004) Guwahati 2022}) 13... Nf5 {[%emt 0:02:19] And now ...0-0 would win.} 14. Qh5+ {[%emt 0:08:40]} Kd7 {[%emt 0:00:18]} 15. Bd2 {[%emt 0:03:23]} ({Reject} 15. Qf7+ Qe7 16. Qxe7+ Kxe7 $17) 15... Qe8 {[%emt 0:12:57]} 16. Qh3 {[%emt 0:00:44]} h6 {[%emt 0:30:14]} 17. Nf3 {[%emt 0:00:24]} Qg6 {[%emt 0:00:20]} 18. O-O-O {[%emt 0:01:00]} h5 {[%emt 0:03:58]} 19. g3 {[%emt 0:44:16]} (19. Bf4 $11) 19... Qg4 $17 {[%emt 0:08:08]} 20. Qg2 {[%emt 0:00:05] [#]} d4 {[%emt 0:00:28]} (20... Raf8 $1 $17 {Hoping for ...Nd6.} 21. Rhe1 Rhg8) 21. Ne4 $11 {[%emt 0:00:11] The position is equal.} Bxe4 {[%emt 0:00:07]} 22. dxe4 {[%emt 0:00:03]} Qxe4 {[%emt 0:00:08]} 23. Rhe1 {[%emt 0:00:42]} Qd5 {[%emt 0:00:28]} 24. Ne5+ {[%emt 0:00:47]} Bxe5 {[%emt 0:10:53]} 25. Qxd5+ {[%emt 0:00:06][%mdl 64] [#] Remove Defender} exd5 {[%emt 0:00:06]} 26. Rxe5 {[%emt 0:00:04]} Nd6 {[%emt 0:00:36]} 27. Rxd5 {[%emt 0:01:50]} Kc6 {[%emt 0:00:07]} 28. Re5 {[%emt 0:00:42]} Rae8 {[%emt 0:01:00]} 29. Rde1 {[%emt 0:00:22]} Rxe5 {[%emt 0:00:52]} 30. Rxe5 {[%emt 0:00:02][%mdl 4096] Endgame KRB-KRN} Nc4 {[%emt 0:00:49]} 31. Re6+ {[%emt 0:10:30]} Kd7 {[%emt 0:01:24]} 32. Re4 {[%emt 0:01:54]} Nxd2 {[%emt 0:01:32]} 33. Kxd2 {[%emt 0:00:01] KR-KR} Rf8 {[%emt 0:00:21]} 34. Re5 {[%emt 0:02:17][%csl LRc5,LRh5]} Rf2+ {[%emt 0:00:20]} 35. Kd3 {[%emt 0:00:04]} c4+ {[%emt 0:00:39]} 36. Kxd4 {[%emt 0:02:18]} Rxh2 {[%emt 0:00:09]} 37. Kxc4 {[%emt 0:00:08]} Rxc2+ {[%emt 0:00:07]} 38. Kb3 {[%emt 0:00:03]} Rg2 {[%emt 0:00:13]} 39. Rxh5 {[%emt 0:00:05]} Rxg3+ {[%emt 0:00:06]} 40. Kc4 {[%emt 0:00:04]} Rg4+ {[%emt 0:00:31] Weighted Error Value: White=0.08 (flawless) /Black=0.07 (flawless)} 1/2-1/2

[Event "93rd German Championship 2022"]
[Site "Magdeburg"]
[Date "2022.08.19"]
[Round "8.5"]
[White "Burian, Simon"]
[Black "Becker, Michael"]
[Result "0-1"]
[ECO "A58"]
[WhiteElo "2189"]
[BlackElo "2270"]
[Annotator "TA"]
[PlyCount "48"]
[EventDate "2022.08.14"]
[EventType "swiss"]
[EventCountry "GER"]
[SourceTitle "playchess.com"]
[Source "ChessBase"]
[SourceQuality "1"]
[TimeControl "40/5400+30:1800+30"]

{[%evp 21,48,69,72,61,122,108,151,140,122,80,75,86,83,32,43,0,64,44,75,25,62,-451,-455,-2452,-2362,-2112,-1455,-29993,-29994]} 1. d4 {[%emt 0:00:04]} Nf6 {[%emt 0:00:18]} 2. c4 {[%emt 0:00:12]} c5 {[%emt 0:00:18]} 3. d5 {[%emt 0:00:12]} b5 {[%emt 0:00:12]} 4. cxb5 {[%emt 0:00:07]} a6 {[%emt 0:00:07]} 5. bxa6 {[%emt 0:00:03]} g6 {[%emt 0:00:26]} 6. Nc3 {[%emt 0:00:04]} Bxa6 {[%emt 0:00:34]} 7. e4 {[%emt 0:00:07]} Bxf1 {[%emt 0:00:18]} 8. Kxf1 {[%emt 0:00:05]} d6 {[%emt 0:01:05]} 9. Nf3 {[%emt 0:00:05]} Nbd7 {[%emt 0:00:26]} 10. g3 {[%emt 0:00:11]} Bg7 {[%emt 0:01:04]} 11. Kg2 {[%emt 0:00:04]} O-O {[%emt 0:02:26]} 12. a4 {[%emt 0:00:04] is cutting edge theory. A59: Benko/Volga Gambit: White castles by hand.} Ng4 {[%emt 0:03:35]} ({Better is} 12... Qb6 $14) 13. Nd2 {[%emt 0:10:06]} f5 {[%emt 0:06:16]} 14. exf5 {[%emt 0:04:07] White is clearly better.} gxf5 {[%emt 0:00:35] [#]} 15. Nc4 $146 {[%emt 0:10:44]} ({Predecessor:} 15. Nf3 Qa5 16. h3 Nge5 17. Ng5 Rfb8 18. Qc2 Qa6 19. Qxf5 Qd3 20. Qe6+ Kh8 21. Rd1 {1-0 (52) Barp,A (2396)-Comai,S (1993) Caldaro 2019}) 15... Nb6 {[%emt 0:04:19]} 16. Nxb6 {[%emt 0:01:55]} Qxb6 {[%emt 0:00:12]} 17. h3 {[%emt 0:10:53]} (17. Qe2 $16) 17... Ne5 $14 {[%emt 0:02:33]} 18. f4 {[%emt 0:09:50]} Nd7 {[%emt 0:08:03]} (18... Nc4 $11) 19. Re1 $36 {[%emt 0:03:50][%mdl 2048] White has good play.} Rf7 {[%emt 0:00:17]} 20. Qd3 {[%emt 0:03:44]} ({White should play} 20. Kh2 $16) 20... Qb4 {[%emt 0:02:00]} 21. Qb5 $2 {[%emt 0:12:52][%mdl 8192] This costs White the game.} (21. Bd2 $1 $14 {keeps the upper hand.}) 21... Bxc3 $19 {[%emt 0:01:58]} 22. Qc6 {[%emt 0:00:23]} (22. Qxb4 $142 Bxb4 23. Rd1) 22... Bxe1 {[%emt 0:00:53]} 23. Qxa8+ {[%emt 0:00:15]} Rf8 {[%emt 0:00:42] [#] ( -> ...Qe4+)} 24. Qa7 {[%emt 0:00:31]} Qe4+ {[%emt 0:00:35] Weighted Error Value: White=1.28/Black=0.56} 0-1

[Event "93rd German Championship 2022"]
[Site "Magdeburg"]
[Date "2022.08.19"]
[Round "8.6"]
[White "Braun, Georg"]
[Black "Krassowizkij, Jaroslaw"]
[Result "0-1"]
[ECO "C11"]
[WhiteElo "2398"]
[BlackElo "2428"]
[Annotator "TA"]
[PlyCount "54"]
[EventDate "2022.08.14"]
[EventType "swiss"]
[EventCountry "GER"]
[SourceTitle "playchess.com"]
[Source "ChessBase"]
[SourceQuality "1"]
[TimeControl "40/5400+30:1800+30"]

{[%evp 20,53,6,8,6,0,19,31,22,20,18,12,8,24,23,20,37,-18,-15,-12,-21,-9,-26,-185,-141,-120,-117,-326,-333,-333,-326,-326,-315,-1116,-1117,-29999]} 1. e4 {[%emt 0:00:08]} e6 {[%emt 0:00:04]} 2. d4 {[%emt 0:00:14]} d5 {[%emt 0:00:05]} 3. Nc3 {[%emt 0:00:08]} Nf6 {[%emt 0:00:04]} 4. e5 {[%emt 0:00:17]} Nfd7 {[%emt 0:00:04]} 5. f4 {[%emt 0:00:07]} c5 {[%emt 0:00:04]} 6. Nf3 {[%emt 0:00:07]} Nc6 {[%emt 0:03:47]} 7. Be3 {[%emt 0:00:08]} cxd4 {[%emt 0:00:06]} 8. Nxd4 {[%emt 0:00:06]} Qb6 {[%emt 0:00:09]} 9. Qd2 {[%emt 0:00:48]} Qxb2 {[%emt 0:00:10]} 10. Rb1 {[%emt 0:00:08]} Qa3 {[%emt 0:00:06]} 11. Bb5 $1 {[%emt 0:00:55]} Nxd4 {[%emt 0:00:08] C11: French: Classical System: 4 e5 and 4 Bg5 dxe4.} 12. Bxd4 {[%emt 0:00:09] [#] Rb3 is the strong threat.} (12. Qxd4 a6 13. Bxd7+ Bxd7 14. Rxb7 Rc8 $17) 12... a6 {[%emt 0:00:03]} 13. Bxd7+ {[%emt 0:00:52]} Bxd7 {[%emt 0:00:06] White is slightly better.} 14. Rb3 {[%emt 0:00:06]} Qe7 {[%emt 0:00:04]} 15. Rxb7 {[%emt 0:00:06]} Rc8 {[%emt 0:05:07][%cal Ba8c8,Bc8c4,Bc4f4][%mdl 32] 15...Qh4+ is the fancy move.} 16. O-O {[%emt 0:00:37] Hoping for Kh1.} Qa3 {[%emt 0:03:57]} 17. Rfb1 {[%emt 0:18:17] Threatens to win with Kh1.} Bc5 {[%emt 0:06:40] And now ...Bxd4+ would win.} 18. R1b3 {[%emt 0:27:37]} ({White should try} 18. Ne2 $14) 18... Bxd4+ $11 {[%emt 0:28:14]} 19. Qxd4 {[%emt 0:00:06]} Qc1+ {[%emt 0:00:04]} 20. Kf2 $1 {[%emt 0:07:10]} (20. Nd1 Rc4 21. Qd3 Bc8 $15) 20... Rc4 {[%emt 0:07:21] [#]} 21. Qa7 $146 {[%emt 0:05:22]} (21. Ne2 $11 {and White has nothing to worry.} Rxd4 22. Nxc1 Rxf4+ 23. Ke2) ({Predecessor:} 21. Ne2 Rxd4 22. Nxc1 Rxf4+ 23. Ke3 Rc4 24. Ra7 Bc8 25. Ne2 Rxc2 26. Rc3 Rxc3+ 27. Nxc3 {0-1 (36) Laurent,B (2379)-Maenhout,T (2344) Belgium 2014}) 21... Rxf4+ {[%emt 0:17:00]} (21... O-O 22. Ne2 Rxc2 23. Rxd7 $15) 22. Kg3 {[%emt 0:06:17] Intending Rb8+ and mate.} Rc4 {[%emt 0:00:52] ( -> ...Qf4+)} (22... Bc8 $2 23. Rb1 (23. Ne2 Qe1+ 24. Kxf4 O-O $16) 23... Qa3 24. R1b3 $18 (24. Kxf4 Qxc3 25. Rxf7 g5+ 26. Kxg5 Qxe5+ 27. Kh6 Qxh2+ 28. Kg7 Qe5+ 29. Kh6 Qh2+ 30. Kg7 Qe5+ 31. Kh6 Qh2+ $11)) 23. Kf2 $2 {[%emt 0:12:58] [#]} (23. Ne2 $17 {was forced.} Qe1+ 24. Qf2 Qxf2+ 25. Kxf2) 23... Rxc3 $1 $19 {[%emt 0:10:10][%mdl 512] Chess con chili.} 24. Rxc3 {[%emt 0:03:30] Rb8+ would kill now.} Qd2+ {[%emt 0:00:05]} 25. Kf1 {[%emt 0:00:26] White wants to mate with Rb8+.} Qxc3 {[%emt 0:01:20]} ({Stronger than} 25... O-O 26. Qe3 Bb5+ 27. Rxb5 Qxe3 28. Rxe3 $17) 26. Rc7 $2 {[%emt 0:04:44]} (26. Rxd7 O-O 27. Rc7 Qxe5 28. Qc5) 26... Bb5+ {[%emt 0:00:36]} 27. Kg1 {[%emt 0:00:14]} Qe1# {Weighted Error Value: White=1.11/Black=0.05 (flawless)} 0-1